{"text_format":"2","workbook":"xlsx","n_sheets":1,"sheets":["BOQ"],"not_rendered":{"charts":0,"images":0,"macros":0,"external_links":0,"defined_names":2,"comments":0,"pivot_tables":0},"unopened":[],"bounds":{"document_bytes":16777216,"sheet_cells":100000,"run_cost":"one","rows_first":2000,"rows_last":500,"rows_between":2000,"halvings":0,"cell_chars":16384,"cell_head_chars":4096},"cells_cut":0,"cells_raw":0,"read":"whole","date_system":"1900"}

{"sheet":"BOQ","index":0,"n_rows":130,"n_cols":6,"rows_kept":130,"cut":false,"hidden":false,"merged":[[9,1,9,5],[7,1,7,5],[8,1,8,5],[5,1,5,5],[6,1,6,5],[0,0,0,5],[1,1,1,5],[2,1,2,5],[3,1,3,5],[4,1,4,5]]}
["Phase-II-Rehabilitation of 329  Housing Units in Al Resala Neighborhood-Al Jadeda Area-West Mosul"]
[null,"General Specification "]
[1,"All works and the materials supplied by the contractor must be in according with the relevant Iraq's standard Specifications ( It’s the contractor responsibility to obtain any relevant Iraqi specifications by visiting ministry of construction and housing web site: www.moch.gov.iq (or physically obtain those documents from the mentioned ministry) in addition to Iraqi technical specification for building works."]
[2,"Providing (4) four permanent signage (after implementation is completed): (60cm x 40cm), printed on white aluminum composite (trade name – Dibond). To be placed in a prominent position at the main entry door of the site, at eye level."]
[3,"Providing (4) four temporary signage (during implementation): (W 190cm x H 90cm) printed on mounted plastic sheeting"]
[4,"The contractor must provide samples, mockup, catalogues for testing / inspection and approval by the site engineer."]
[5,"Contractor must pay the cost for samples including any laboratory tests, both inside and outside the country as required."]
[6,"The price of works includes all job requirements as per Iraq's standard specification."]
[7,"The contractor must provide PPE for all laborer's, personnel, engineers and possible visitors to the site."]
[8,"a-\tThe contractor should provide workers to complete all the items, at least 225 workers of these workers must be working for more than 40 days.\nb-\tThe contractor should payed 13 $ or more for labours per working day.\nc-\tThe contractor should provide a daily Information table regarding all staff and workers number."]
["#","Item Description","Unit","Qty","Price $","Total $"]
[null,"CIVIL WORKS"]
[null,"Works include Smoothing the Surfaces for all Concrete Works"]
[1,"Site preparation:\nSupply of materials, tools, machineries and manpower for site preparation. The work includes :     \n1-  Demolishing  and  Removing all the damaged and destroyed roofing layers, slabs, walls, fences, finishing materials, flooring tiles, tile bedding, and all the other debris and rubble within the house.   \n2-Dumping of all the debris and rubble to a site approved by the local authorities.      \n All needed work to complete the job will be included within the price.","NO.",27,null,{"$f":"D14*E14","v":0}]
[2,"Cleaning the House:\nSupply of materials, tools, machineries and manpower to clean the houses. The work includes :     \n1-Removing all the other debris and rubble within the house fence.   \n2-Dumping of all the debris and rubble to a site approved by the local authorities.      \n All needed work to complete the job will be included within the price.","NO.",302,null,{"$f":"D15*E15","v":0}]
[3,"Reconstruction of Damaged ( Stone ) Walls:\nSupply of materials, tools and manpower to demolish the damaged parts of the walls and remove all the debris to a site approved by local authorities, then rebuild the wall using  25X20X15cm stone and cement mortar (1: 3)  including flush pointing inside and outside of the walls with cement sand mortar (1:3). The price includes filling the space between the stones with plain concrete (C20MPa). The joints between stones should be according to specifications but not exceeds 4cm.  All needed work to complete the job will be included within the price.","M3",5,null,0]
[4,"Reconstruction of Damaged ( Block) Walls:\nSupply of materials, tools and manpower to demolish the damaged parts of the walls and remove all the debris to a site approved by local authorities, then rebuild the wall (20cm) using solid concrete block  (15x20x40cm)  with cement sand mortar . The wall should be levelled vertically and horizontally. All needed works to complete the job, will be included within the price","M3",221,null,0]
[5,"Masonry Block Wall for the Ramp: (For Handicapped People)\nSupply of materials, tools and manpower to build the wall (20cm) using solid concrete block  (15x20x40cm)  with cement sand mortar . The wall should be levelled vertically and horizontally. All needed works to complete the job, will be included within the price. See attached drawing.","M3",1,null,0]
[6,"Filling with Sub Base:(For Handicapped People)\nSupply of materials, tools and manpower for filling with sub base up to the required level inside the ramp. All needed work to complete the job will be included within the price. See attached drawing.","M3",1,null,0]
[7,"Brick works:\nSupply of materials, tools and manpower to demolish the damaged parts of the walls and remove all the debris to a site approved by local authorities, then rebuild the walls using brick (7.5*11.5*24cm) with cement sand mortar (1:3).The wall should be levelled vertically and horizontally. All needed works to complete the job will be included within the price. ","M3",3,null,0]
[8,"Parapet Wall:  \nSupply of materials, tools and manpower to to demolish the damaged parts of the walls and remove all the debris to a site approved by local authorities, then rebuild parapet wall using hollow concrete blocks 15x20x40 cm and sand mortar (1:3). The work includes the cement plastering for two sides and the upper of parapet. All needed works to complete the job will be included within the price.","M3",202,null,0]
[9,"Reinforced Concrete slab, beam, column, lintel and staircase:\nSupply of materials, tools and manpower for casting reinforced concrete slab, beam, column, lintel, louver, parapet, decoration and staircase using concrete (C25MPa). The price includes demolishing of all destroyed and damaged part of the concrete and remove all the debris and rubble to a site approved by local auhorities,  adding bonding agent material between the old and new concrete(if any), all the requirements of steel reinforcement, concrete covers and formworks. All needed works to complete the job will be included within the price.\nSlab: Two layers of reinforcements, each layer Ø12mm @20cm c/c both directions.\nBeam and Lintel: 3Ø16 top, 3Ø16 bottom and stirrups Ø10mm @20cm c/c.\nColumn: 8Ø16mm and stirrups Ø10mm @20cm c/c.\nStair: Ø12mm @ 15cm c/c two layers and both directions.","M3",70,null,0]
[10,"Repairing of Slab:\nSupply of materials, tools, machinery and manpower for repairing of reinforced concrete slab by demolishing of the destroyed area of the slab and dumping of all debris and rubble to a site approved by local authorities. Price will include recasting a reinforced concrete 20cm thickness (or same as the existing) for the damaged area of the slab using concrete (C25MPa) , providing formwork, rebar (Two layers of reinforcements, each layer Ø12mm @20cm c/c both directions) and using bonding agent (like SBR) to create a bonding slurry when mixed with cement. The new slab must rest on the old slab by a minimum distance not less than 50 cm and treat both contacted slab by isolated material to prevent water leakage.  All needed works to complete the job, will be included within the price.","M2",290,null,0]
[11,"Concrete with BRC:\nSupply of materials, tools and manpower for casting (10cm ) concrete with BRC(200x200x5mm) using sulphate resistant cement for (C25MPa) concrete. The price includes providing expansion joints every 4m both directions and filling the joints with joint sealant. All needed works to complete the job will be included within the price.","M2",55.000000000000007,null,0]
[12,"Plain Concrete:-\nSupply of materials, tools and manpower for casting (10cm ) plain concrete (C25MPa) using sulphate resistance cement . The price includes adding bonding agent material between the old and new concrete(if any). The work includes all the requirements of concrete covers and formworks. All needed works to complete the job will be included within the price.","M2",374.00000000000006,null,0]
[13,"Plain Concrete: (For Handicapped People)\nSupply of materials, tools and manpower for casting (15cm) plain concrete and the vertical drops using concrete (C25MPa) and using sulphate resistance cement. The price includes adding bonding agent material between the old and new concrete(if any). The work includes all the requirements of concrete covers and formworks. All needed works to complete the job will be included within the price.  See attached drawing.","M3",2,null,0]
[14,"Sandwich Panel :                                                                                                         \nSupply of materials, tools and manpower to remove all the damaged frame and sandwich panel to a site approved by local authorities, then install roof sandwich panel (5cm) thickness. The frame beams consist of rectangular tube 100x50x1.8mm placed every 150cm c/c .The price includes painting the steel frame with one layer of anti rust and two layers of oil paint. work includes filling the voids between the steel frame and the wall by ‎foam \" to prevent insect and water leakage .‎All needed work to complete the job will be included within the price.","M2",454,null,0]
[15,"Corrugated Sheet (0.5mm) with Frames:           \nSupply of materials, tools and manpower to remove all the damaged frame and corrugated sheet to a site approved by local authorities, then install new corrugated metal sheet, thickness 0.5mm. The main & secondary frame beams consist of rectangular tube 100x50x1.8mm fixed by screws and overlapped in order to prevent water leakage and painting the steel structure with one layer of anti rust and two layers of oil paint. All needed work to complete the job will be included within the price.","M2",70,null,0]
[16,"Corrugated Sheet (0.5mm) without Frames:           \nSupply of materials, tools and manpower to remove all the damaged corrugated sheet to a site approved by local authorities, repair the damage part of the steel frame  and paint  all the frame   then install new corrugated metal sheet, thickness 0.5mm, fixed by screws and overlapped in order to prevent water leakage. All needed work to complete the job will be included within the price.","M2",40,null,0]
[17,"Roof Waterproofing (Surface Treatment):\nSupply of materials, tools and manpower for roof repairing work. including clean, wash and removing the rubble from the surfaces and follow up steps as below:\n1- Treatment of cracks and wall connection area with roof, by using polyurethane foam\n2- Apply one layer of polyurethane primer coat  (extreme bond primer or equivelent  approved by engineer)\n3- Painting the surface by using 3 layers of polyurethane (rubber membrane paint  as damp proof rubber membrane  or  equivelent approved by engineer) of 2 mm thickness   \nAll needed works to complete the job will be included within the price. \n\n","M2",8344,null,0]
[18,"Roof Waterproofing (Crack Treatment):\nSupply of materials, tools and manpower for roof repairing work. including clean, wash and removing the rubble from the Joints for cracks between (1- 4 cm ,width), and follow up steps as below:\n1- Apply the compacted sponge rode according to the joint width.\n2- Apply one layer of polyurethane primer coat. PRIMER-PU    or equivelent  approved by engineer.\n3- Apply the flexible sealant for joints ( Sausage ).\nAll needed works to complete the job will be included within the price.                            ","M.L",612,null,0]
[19,"Repairing of roofing joints with sealant(mastic):\nSupply of materials, tools and manpower to remove the defected sealants and fill the joints with joint sealant(mastic). The price includes cleaning the joints before filling with sealants. All needed works to complete the job will be included within the price.","M.L",210,null,0]
[20,"Gypsum Plastering For New Walls:\nSupply of materials, tools and manpower for gypsum plastering with 20mm thickness smooth-finished for walls and ceilings using aluminum straight edges. The price includes one layer of cement splash dash under gypsum plastering with cement-sand mortar. All needed works to complete the job will be included within the price.","M2",803.00000000000011,null,0]
[21,"Gypsum plastering with crack repairing:\nSupply of all necessary materials, tools and manpower to remove the damaged gypsum plastering of  walls & ceiling and plastering with new gypsum plastering  in 2 layers minimum thickness 20mm.The work includes repairing of wall cracks by removing the damaged gypsum plastering 25cm at each side of the crack, then filling the cracks with cement mortar 1:3 and using SBR at a rate of 50gr per m2 , later putting a layer of plastic mesh on the area under the gypsum plastering. All needed works to complete the job, will be included within the price.","M2",1125,null,0]
[22,"Gypsum Plastering without crack repairing:\nSupply of materials, tools and manpower to remove the damaged gypsum plastering parts of ceilings and internal walls. The work includes remove the damaged parts and cracks of old plaster layers and re-plastering with 20mm thickness smooth-finished for internal walls and ceilings using aluminum straight edges. The price includes one layer of cement splash dash under gypsum plastering with cement-sand mortar. All needed works to complete the job will be included within the price.","M2",2970,null,0]
[23,"Cement Plastering For New Walls:\nSupply of materials, tools and manpower for cement plastering with 20mm thickness smooth-finished for walls and fences walls using aluminum straight edges. The price includes three layers as follows: one layer of cement splash dash, one layer of rough (kafmal) and finally smooth finished cement plastering with cement-sand mortar. All needed works to complete the job will be included within the price.","M2",8732,null,0]
[24,"Cement plastering with crack repairing:\nSupply of materials, tools and manpower to repair wall cracks and remove the damaged cement plastering of walls & fence by removing the damaged cement plastering minimum 35cm at each side of the crack, then treat the cracks with crack filler approved by manufacture with cement mortar 1:3 and using SBR at a rate of 50gr per m2, later putting a layer of metal chicken mesh 10 cm overlap each side on the area with 3 layers of cement plastering 1:3. All needed works to complete the job, will be included within the price.","M2",2521,null,0]
[25,"Cement Plastering without crack repairing:\nSupply of materials, tools and manpower to remove the damaged cement plastering from the exterior or internal walls and fences and apply new layer of cement plastering (20 mm thickness) using cement and sand mortar (1:3) and using aluminum straight edges. Also include removing all the rubble to a site approved by local authorities. All needed work to complete the job will be included within the price.","M2",7359.0000000000009,null,0]
[26,"Emulsion painting:\nSupply of materials, tools and manpower to paint the interior walls and ceilings, with 3 layers of emulsion painting (Jotun, Betek, CAPAROL, Polisan, dyo or equivalent). The paint should be diluted (10%--15%) with water to achieve the coverage of painting of not more than (10-12) m2/Liter/layer. The job includes cleaning the walls and ceilings, removing the dirt and dust, repairing all the cracks and filling all the holes before painting. All needed works to complete the job, shall be included within the price.","M2",40000,null,0]
[27,"Plastic painting:\nSupply of materials, tools and manpower to paint the exterior walls and fence, with three layers of plastic (silicon water proof) paint (Jotun, Betek, CAPAROL, Polisan, dyo or equivalent). The paint should be diluted (10%--15%) with water to achieve the coverage of painting of not more than (10-12) m2/Liter/layer.  The job includes cleaning the walls, removing the dirt and dust, repairing all the cracks and filling all the holes before painting. All needed works to complete the job, shall be included within the price.","M2",52000,null,0]
[28,"Oil Painting:\nSupply of materials, tools and manpower to paint the ( internal walls, Kitchens, W.C., Baths, steel doors, windows,  steel Handrails ) .(Jotun, Betek, CAPAROL, Polisan, dyo or equivalent). The paint should be diluted (10%--15%) with paint thinners to achieve the coverage of painting of not more than (10-12) m2/Liter/layer.  The job includes cleaning the walls, removing the dirt and dust, repairing all the cracks and filling all the holes before painting. All needed works to complete the job, shall be included within the price.","M2",19611,null,0]
[29,"Waterproof Painting:                                                                                             \nSupply of materials, tools and manpower to paint the exterior and interior walls with three layers of (water proof) paint. The job includes cleaning the walls, removing the dirt and dust, repairing all the cracks and filling all the holes before painting. All needed works to complete the job, shall be included within the price.              ","M2",2380,null,0]
[30,"Polishing of Lime stone (Hillan) & Marble :\nSupply of materials, tools and manpower for polishing the lime stone (hillan) & Marble, including filling all the cracks, joints and holes of the lime stone & Marble with white cement paste and apply a layer of varnish. All needed works to complete the job will be included within the price.","M2",100,null,0]
[31,"Skirting:\nSupply of materials, tools and manpower to apply ceramic skirting 10cm height using cement mortar. The price includes removing of all the damaged or burned skirting and dumping it to a site approved by local authority, filling the joints with white cement paste. All needed work to complete the job will be included within the price.","M.L",100,null,0]
[32,"Gypsum board Suspended Ceiling :\nSupply of materials, tools and manpower to install  gypsum board suspended ceiling 60x60 cm, 8mm thickness, by using necessary accessories L, T sections, hold down clips, galvanized steel rod 3.8mm (1.2x1.2m) for fixing with the ceiling by screws. The price includes the removal of old damaged suspended ceiling, dumping of all debris to a site approved by local authorities, in case it is needed. All needed work to complete the job will be included within the price. See attached drawing.","M2",4577,null,0]
[33,"Plastic Suspended Ceiling :\nSupply of materials, tools and manpower to install plastic suspended ceiling 60x60 cm, 7mm thickness, by using necessary accessories L, T sections, hold down clips, galvanized steel rod 3.8mm (1.2x1.2m) for fixing with the ceiling by screws. The price includes the removal of old damaged suspended ceiling, dumping of all debris to a site approved by local authorities, in case it is needed. All needed work to complete the job will be included within the price. See attached drawing.","M2",576,null,0]
[34,"Aluminum Windows:\nSupply of materials, tools and manpower to install  aluminum windows (frames of minimum 60 mm width). The price of works includes anti-insects wire mesh for openable parts, handles, windows stopper, crystal clear class 4mm thickness, and repairing the window edges (cement and gypsum plastering) from both sides. All needed work to complete the job will be included within the price.","M2",1,null,0]
[35,"PVC Windows:\nSupply of materials, tools and manpower to install  PVC windows (frames of minimum 60 mm width). The price of works includes anti-insects wire mesh for openable parts, handles, windows stopper, crystal clear class 4mm thickness, and repairing the window edges (cement and gypsum plastering) from both sides. All needed work to complete the job will be included within the price.","M2",70,null,0]
[36,"Steel Windows:\nSupply of materials, tools and manpower to install steel windows (using T, L and Z shapes). The price of works includes anti rust panting and two layers of oil painting, anti-insects wire mesh for openable parts, handles, windows stopper, crystal clear class 4mm thickness with paste, and repairing the window edges (cement and gypsum plastering) from both sides. All needed work to complete the job will be included within the price.","M2",107,null,0]
[37,"Windows Burglar:\nSupply of materials, tools and manpower to make steel burglar for the windows using  12mm square steel bar every 15cm and the outer frame of angle section 50x50x2mm. The price of works includes anti rust panting , two layers of oil painting and repairing the windows burglar edges (cement and gypsum plastering) from both sides. All needed work to complete the job will be included within the price.","M2",155,null,0]
[38,"Steel Handrail:\nSupply of materials, tools and manpower to install steel handrail  (height of 80cm) for staircases and openings, using steel tubes as per the drawing. The price includes anti rust and three layers of oil painting. All needed work to complete the job will be included within the price. See attached drawing.","M.L",709,null,0]
[39,"Steel Stair with Handrail:\nSupply of materials, tools and manpower to install steel stair with handrail (90cm height),The steps width is (1m) and (as existing length). The price includes, painting with anti-rust paint and three layers of oil paint.  All needed work to complete the job will be included within the price. See attached drawing.\n ","M.L",22,null,0]
[40,"Steel Door with the Frame:\nSupply of materials, tools and manpower to install steel door with frame, with steel plate gauge 18(1.21mm) on double face, using steel tube 25x25x1.8mm, including a layer of Styrofoam to be placed between the two faces, hinges, doors handles, locks and fixing a stopper on the floor or wall. The Price of the work shall include removing the damaged door and painting of steel door using anti-rust and 2 layers of oil paint  and repairing the door edges (cement and gypsum plastering) from both sides. All needed work to complete the job will be included within the price. See attached drawing.","M2.",734,null,0]
[41,"Steel Door without Frame:                                                                                         \nSupply of materials, tools and manpower to install steel door without frame, with steel plate gauge 18(1.21mm) on double face, using steel tube 25x25x1.8mm, including a layer of Styrofoam to be placed between the two faces, hinges, doors handles, locks and fixing a stopper on the floor or wall. The Price of the work shall include removing the damaged doors and painting of steel door using anti-rust and 2 layers of oil paint. All needed work to complete the job will be included within the price.  See attached drawing.","M2.",884,null,0]
[42,"Main steel Gate:                                                                                                            \nSupply of materials, tools and manpower to install new main gate steel door using plate gauge 18 (1.21mm) and steel tube 40x40x1.8mm,including 4-hinges on each side, doors handles, locks. The Price of the work shall include removing the damaged doors, painting of steel door using anti-rust and 2 layers of oil paint and repairing the main gate edges from both sides. All needed work to complete the job will be included within the price. See attached drawing.       ","M2.",1261,null,0]
[43,"PVC Doors with Frame:\nSupply of materials, tools and manpower to install PVC doors with frame. The PVC section should be wide section (Min. 60mm). Price of the work shall include removing the damaged doors and hinges, handles, locks and repairing the door edges from both sides . All needed works to complete the job, will be included within the price. See attached drawing.","M2.",1235,null,0]
[44,"PVC Doors with out Frame:\nSupply of materials, tools and manpower to install PVC doors with out frame  . The PVC section should be wide section (Min. 60mm). The Price of the work shall include removing the damaged doors and hinges, handles, locks. All needed works to complete the job, will be included within the price. See attached drawing.","M2.",7.5,null,0]
[45,"PVC Partitions:\nSupply of materials, tools and manpower for installing PVC partitions (height according to the instruction of the engineer) including doors (1.0x2.0m) and opening part. The price of works includes PVC sheets, door locks, handles, hinges, frosted glass 4mm, and Remove the existing partitions if any. All needed work to complete the job will be included within the price.","M2.",5,null,0]
[46,"Wooden doors with Frame:                                                                                           \nSupply of materials, tools and manpower to install teak wooden ( saj ) doors with red cedar ( jaw) wooden frame  .The Price of the work shall include removing the damaged doors and frames, door locks, handles, hinges, teak painting and varnish painting and repairing the door edges from both sides .All needed work to complete the job will be included within the price. See attached drawing.","M2.",304,null,0]
[47,"Wooden doors without Frame: \nSupply of materials, tools and manpower to install teak wooden ( saj ) doors with red cedar ( jaw) wooden without frame. The Price of the work shall include removing the damaged doors and frames, door locks, handles, hinges, teak painting and varnish painting. Also repairing the gypsum plastering and cement plastering of the edges and repaint the old frame as same as the new door .All needed work to complete the job will be included within the price. See attached drawing.","M2.",627,null,0]
[48,"Repair Aluminum  Windows:\nSupply of materials, tools, machineries and manpower to repair the damaged aluminum windows, including , anti-insects wire mesh for openable parts , handle ,crystal clear glass (4mm) and repairing the window edges from both sides. All needed works to complete the job, will be included within the price.","NO.",1,null,0]
[49,"Repair Steel Windows:\nSupply of materials, tools, machineries and manpower to repair the damaged steel windows, including , welding, painting, anti-insects wire mesh for openable parts and handle, crystal clear glass (4mm) and repairing the window edges from both sides. All needed works to complete the job, will be included within the price.","NO.",551,null,0]
[50,"Repair PVC Windows:                                                                                               Supply of materials, tools, machineries and manpower to repair the damaged PVC windows, including anti-insects wire mesh for openable parts and handle, crystal clear glass (4mm) and repairing the window edges from both sides. All needed works to complete the job, will be included within the price. ","NO.",1,null,0]
[51,"Repair Windows Burglar:\nSupply of materials, tools, machineries and manpower to repair the damaged steel windows Burglar, the price of works includes anti rust painting, two layers of oil painting and repairing the window Burglar edges from both sides . All needed works to complete the job, will be included within the price.","NO.",1,null,0]
[52,"Repair Main steel Gate:                                                                                               Supply of materials, tools, machineries and manpower to repair the damaged main steel door. Price of works shall include door lock, handles, hinges, oil painting, accessories, and repairing the door edges from both sides. All needed work to complete the job will be included within the price.","NO.",78,null,0]
[53,"Repair steel doors:\nSupply of materials, tools, machineries and manpower to repair the damaged steel doors. Price of works shall include door lock, handles, hinges, oil painting , accessories, and repairing the door edges from both sides. All needed work to complete the job will be included within the price.","NO.",239,null,0]
[54,"Repair wooden doors:\nSupply of materials, tools, machineries and manpower to repair the damaged wooden doors. Price of works shall include door lock, handles, hinges, teak painting and varnish painting , accessories, and repairing the door edges from both sides. All needed work to complete the job will be included within the price.","NO.",140,null,0]
[55,"Repair aluminum doors:\nSupply of materials, tools, machineries and manpower to repair the damaged aluminum doors. Price of works shall include door lock, handles, hinges , accessories, repairing the door edges from both sides. All needed work to complete the job will be included within the price.","NO.",8,null,0]
[56,"Repair PVC doors:\nSupply of materials, tools, machineries and manpower to repair the damaged PVC doors. Price of works shall include door lock, handles, hinges, accessories and repairing the door edges from both sides. All needed work to complete the job will be included within the price.","NO.",5,null,0]
[57,"Repair steel Handrail :                                                                                                 Supply of materials, tools, machineries and manpower to repair the damaged Handrail. Price of works shall include oil painting and accessories. All needed work to complete the job will be included within the price.","M.L",265,null,0]
[58,"Fixing Window Handles :\nSupply of materials and fixing new handles for the windows instead of old and damaged ones. All needed work to complete the job will be included within the price. ","NO.",1504,null,0]
[59,"Crystal clear glass 4mm:\nSupply of materials, tools and manpower to remove the damaged glass and paste and to install new crystal clear glass 4 mm with new paste, dumping of all debris to a site approved by local authorities. All needed work to complete the job will be included within the price.","M2",950,null,0]
[60,"Treatment of Roof Water Ponds (Screed Concrete): See attached annex:\nSupply of materials, tools and manpower to treat the roof water ponds (screed concrete) using self levelling concrete (from zero up to 4 cm thickness). The price includes cleaning the roof, removing all the collected water and drying the surface before applying the treatment. All needed work to complete the job will be included withing the price.","M2",377,null,0]
[61,"Replacing doors Handles :                                                                                                                      Supply of materials, tools and manpower to fix new handles for the doors (size must fit the old one). All needed work to complete the job will be included within the price","NO.",341,null,0]
[null,"SUB TOTAL FOR CIVIL WORKS ",null,null,null,{"$f":"SUM(F14:F74)","v":0}]
[null,"SANITARY WORKS"]
[null,"Work includes clean the sewerage , wherever needed . "]
[1,"Ceramic wash basin:                                                                                                    \nSupply of materials , tools and manpower to install ceramic wash basin with stand, mixer taps , valves , and all  fittings with complete water connections . All needed work to complete the job will be included within the price.","NO.",64,null,{"$f":"D78*E78","v":0}]
[2,"Grab Bar (Handle): (For Handicapped People)\nSupply of materials , tools and manpower to install stainless teel grab bar (handle) according to the following specs:\n1-Ø=38mm.\n2-Length= 40-60cm.\n3-Average weight= 800-1000 grams.\nAll needed work to complete the job will be included within the price. See attached drawing.","NO.",16,null,0]
[3,"Special Ceramic Wash Basin: (For Handicapped People)                                                                                                 \nSupply of materials , tools and manpower to install special ceramic wash basin for handicapped people. The price includes single handle chrome mixer, valves, flexible hoses for water connections and all fittings with complete water connections, also special outlet fittings and connection to the nearest floor drain . All needed work to complete the job will be included within the price. See attached drawing.","NO.",1,null,0]
[4,"Stainless steel Single bowl sink:\nSupply of materials, tools and manpower to install and commission of stainless steel double bowl sink (100x50cm). Complete with: chrome mixer for sinks, supports (steel base made of steel angle 25x25*2mm), waste outlet, tail piece, P-trap chrome, chrome plated 14mm and required parts for the water supply line. All needed work to complete the job will be included within the price.","NO.",22,null,0]
[5,"Stainless steel double bowl sink:\nSupply of materials, tools and manpower to install and commission of stainless steel double bowl sink (150x50cm). Complete with: chrome mixer for sinks, supports (steel base made of steel angle 25x25*3mm), waste outlet, tail piece, P-trap chrome, chrome plated 14mm and required parts for the water supply line. All needed work to complete the job will be included within the price.","NO.",9,null,0]
[6,"Mixer taps :                                                                                                                    \nSupplying materials , tools and manpower to install mixer taps , valves and all  accessories with complete water connections. All needed work to complete the job will be included within the price.","NO.",410,null,0]
[7,"Eastern toilet:\nSupply of materials, tools and manpower to install ceramic eastern toilet. Including siphon,  gully trap Ø100mm (4\"), flexible hose 5mm, water connections and flushing. All needed work to complete the job will be included within the price.","NO.",45,null,0]
[8,"Western toilet:\nSupply of materials, tools and manpower to install ceramic western toilet. Including siphon, pipe Ø100mm (4\"), flexible hose 5mm, water connections and flushing. All needed work to complete the job will be included within the price.","NO.",11,null,0]
[9,"PVC pipe 4\" (Ø 100mm):\nSupply, installation, testing and commissioning of PVC 4\"(100mm) 6 bar for drainage and ventilation pipes down to manholes with all required fittings including excavation, back filling, incasing with sulphate resistant cement concrete and roof vent caps. All needed works to complete the job, will be included within the price.","M.L",174,null,0]
[10,"PVC Drain pipes: 2.5\"\nSupply of materials, tools and manpower to remove the damaged water roof drain pipes and install new PVC pipes 2.5\". Including all connections and needed accessories to fix on roof and walls. All needed work to complete the job will be included within the price.","M.L",444,null,0]
[11,"PVC pipes (1/2\"):\nSupply and install plastic water pipes (½)” diameter.  The price includes all fittings and accessories, install pipes on the walls by using double conduit clamp and drilling in walls wherever needed. All needed work to complete the job will be included within the price.","M.L",161,null,0]
[12,"PVC pipes(3/4\"):\nSupply and install plastic water pipes (3/4)” diameter.  The price includes all fittings and accessories, install pipes on the walls by using double conduit clamp and drilling in walls wherever needed. All needed work to complete the job will be included within the price.","M.L",1208,null,0]
[13,"Water tank:\nSupply of necessary materials, tools and manpower for installing galvanized water tank of 1250 liters. cylindrical shape with plate gauge 18, supported by steel base made with 50mm (2\") angle shape, including the connection of the inlet and outlet pipes. The price of work includes all piping and fittings, valves, float valves, accessories. All needed work to complete the job will be included within the price.","NO.",136,null,0]
[14,"Masonry manholes:(30x30 cm )\nSupply of materials and construction of manholes of 30x30 cm and cover 30x30cm and different depths with internal dimension as follows using solid concrete blocks15X20X40 cm for walls. The price includes excavation, crushed stone, plain concrete, walls, plastering both sides, &  cast iron covers, according to the details shown in the drawings.","NO.",40,null,0]
[15,"Siphon:\nSupply of materials, tools and manpower to install siphon, valves and all needed accessories for completing water connections. All needed works to complete the job, will be included within the price.","NO.",11,null,0]
[16,"Taps: \nSupply of materials, tools and manpower to connect chrome water taps 1/2\" or 3/4\". Price of the work shall include water connections. All needed work to complete the job will be included within the price.","NO.",642,null,0]
[null,"SUB TOTAL FOR SANITARY WORKS ",null,null,null,{"$f":"SUM(F78:F93)","v":0}]
[null,"ELECTRICAL WORKS"]
[null,"A-Work includes replace the damaged wires with new suitable size , testing and operation.             \nB-The contractor is obliged to replace  all electrical wires and fixtures that may damaged during the implementation of the other civil work paragraphs ."]
[1,"Outlet Socket (13 Amp):\nSupply, connect and operate outlet socket 13 Amp 2P+E, (ABB, Al-Fanar ( KSA ) , SELMAT  or equivalent) , by using wire  (2x2.5mm²)  PVC insulated copper cable with all accessories. The work includes using PVC trunk cable in exposed areas, or by surface wiring using cable clamps as per the engineer instructions . sockets  for each room have to be connected directly to the sub-distribution board with all installation and connection accessories all the required works to complete the job.","NO.",1237,null,{"$f":"D97*E97","v":0}]
[2,"Outlet Socket (13 Amp) [ old wiring ]                                                                         \nSupply, connect, test and operate outlet switched  socket 13 Amp 2P+E, (ABB , Al-Fanar,Selamat, or equivalent), by using the old existed wiring. ","NO.",445,null,0]
[3,"Outlet Socket (15 Amp):\nSupply, connect and operate outlet socket 15 Amp 2P+E, (ABB,Al-Fanar,Quanta or equivalent), by using wire  (2x2.5mm²) PVC insulated copper cable with all accessories. The work includes using PVC trunk cable in exposed areas, or by surface wiring using cable clamps as per the engineer instructions connecting the plugs for each room directly to the sub-distribution board with all installation and connection accessories all the required works to complete the job.","NO.",456,null,0]
[4,"Ceiling LED lights:\nSupply, install, connect, test and operate the Ceiling LED lamp of 18 W capacity (Surface mounting), ( BG,Energetic, or Equivalent), using wire  (2x1.5mm²)  PVC insulated copper cable  and single way lighting switch (6A single, double or triple ganged), with all accessories .The work includes using PVC trunk cable in exposed areas , or by surface wiring using cable clamps as per the engineer instructions .  All connection and installation accessories with all the required works to complete the Job.","NO.",261,null,0]
[5,"Waterproof Lighting Fixture:\nSupply, connect and operate Waterproof Lighting Fixture lighting with lamp of 18 W capacity  ( BG, Energetic , or Equivalent), using wire  (2x1.5mm²)  PVC insulated copper cable  and single way  lighting switch (6A single, double or triple ganged) with all accessories The work includes using PVC trunk cable in exposed areas , , or by surface wiring using cable clamps as per the engineer instructions .  All connection and installation accessories with all the required works to complete the Job.","NO.",1836,null,0]
[6,"fluorescent Lighting:                \nSupplying materials, tools and manpower, to install, connect and commissioning Simple Fluorescent Lighting Fixture 1x36 W, 4 feet (Hom, BG,or Equivalent) using wire (2*1.5mm2) ,  using single way lighting switch (6A single, double or triple ganged), The work includes using PVC trunk cable in exposed areas  , or by surface wiring using cable clamps as per the engineer instructions .  All connection and installation accessories with all the required works to complete the Job.","NO.",1344,null,0]
[7,"Fluorescent Lighting [ old wiring ]                                                                            Supply , install, test , connect and commissioning Simple Fluorescent Lighting Fixture 1x36 W , 4 feet (Hom, BG,or Equivalent) using the old existing wiring  and the old existing switch , with all the required works to complete the Job.","NO.",560,null,0]
[8,"Sub Distribution Board SDB -12 Way:\nSupply, test, and operate Sub distribution board metal enclosure ( Al-Fanar, ABB,Schneider, Or Equivalent), Anti-corrosion paint with good locking door weather proof  according to technical specification and instruction of Supervisor Engineers. The SDB will include the following breakers; Main MCB 2pole 63A, MCB 16 Amps /No 4,  MCB 25 Amps /No 4, MCB 32 Amps/No 2.All connection and installation accessories with .All the required works to complete the Job.","NO.",20,null,0]
[9,"Electrical water boiler:\nSupply materials, tools and manpower to install, establish, connect, and commissioning electrical boiler 100 Liter 3 kw (made of two galvanized metallic layers ( the inner cylinder plate must be 2mm thickness) with heat insulator between them  and also with thermo meter  with complete fittings & accessories . The work includes  Power Cable size (2x4mm2) .flexible cable copper conductor , using (Plastic Cable Duct PVC Trunking)  , or by surface wiring using cable clamps as per the engineer instructions , extend form SDB or from the main circuit breaker  to the water boiler  using  switch  (45 Amp), the plate of the boiler base must be not less than 1 mm thickness, the painting of the boiler must be thermal type . With all accessories and requirement to implement the work entirely. ","NO.",62,null,0]
[10,"Ceiling Fan: \nSupply, install, test and commission of ceiling fan (240 volt A.C , 56\" size ) ( Khind, Panasonic , KDK , or Equivalent) , down rod of standard length up to 300mm, and fan regulator includes wiring/connecting with 1.0 kV grade 2*1.5mm² PVC insulated copper cable/wires with all accessories. The price includes supplying,installing,connecting,laying, drilling & cutting ( concrete wall if required ) and commissioning to complete works as required. All connection and installation accessories with all the required works to complete the Job.   ","NO.",400,null,0]
[11,"Wall Fan :                                                                                                                       \nSupply, install, test and commission of wall fan (240 volt A.C , size 16\")  using 2x1.5 mm²  wiring  , ceiling rose and 6A switch  (  Khind, Panasonic , KDK , or equivalent ). All connection and installation accessories with all the required works to complete the Job.","NO.",9,null,0]
[12,"LED Spot Lighting:\n Supply, install, connect and commission spot lighting fixtures, LED (240VAC/18 W), complete set with all accessories such as base, LED drive  (Energitic,BG, or Equivalent), includes wiring with 1.0 kV grade 2*1.5mm² PVC insulated copper cable/wires and switches of( 6A single, double or triple ganged) ,with all accessories. The price includes Supplying,installing,Connect, laying, drilling & cutting ( concrete wall if required ) and commissioning to complete works as required. All connection and installation accessories with all the required works to complete the Job.  \n","NO.",1152,null,0]
[13,"Cable 2x10 mm2:                                                                                                           supply , install and connect stranded copper cable 2x10 mm2  ( HES , SEVAL , or equivalent ) according to the engineer instructions.","M.L",137.5,null,0]
[14,"Metallic Enclosure:                                                                                                                                      supply and fixing metallic enclosure ( 40 x 50 x 25 ) cm with transparent plastic interface  and with two signal lamp, the work include dismantling the existed main circuit breaker and KWH meter and re-install them in a systematic way using wooden board under them , with all required works to complete the job.","NO.",118,null,0]
[15,"Cable 2x4 mm2                                                                                                                                    Supply,  install and connect  pvc insulated flexable copper cable 2 x 4 mm2 , 300/500 V ( HES , SEVAL , or equivalent ) , the work to be done according to the engineer instructions , with all required works to complete the job .","M.L",44,null,0]
[16,"SDB cover\nSupply and fixing  (the  cover only ) for an old sub distribution board , which is already exist in the house , the cover dimensions must be perfectly fit for the old SDB ,( the old SDB is of different brands and types ,so each cover may be different from the other , but it is approximately about 22 x 35  cm )   the work to be done according to the engineer instructions , with all required works to complete the job .","NO.",8,null,0]
[17,"1ph circuit breaker                                                                                                                             supply and install single phase miniture circuit breaker (16 ,or, 25 ,or, 32  ,or, 40 ,or,  50 ,or,  63A)  type C characteristic curve , thermal  magnetic protection ( 6kA breaking capacity )  korean or Turkish made ( or equvelent ) ,the work to be done according to the engineer instructions , with all required works to complete the job .","NO.",20,null,0]
[18,"PLASTIC COVER (Enclosure):\nSupply and replacing  8 x 8 cm ( Plastic Enclosure ) for covering existing dimensions of 8x 8 cm electrical junction boxes include similar standard IP and color type with all required accessories (such as with watertight gasket) to complete work as required.","NO.",10,null,0]
[19,"JUNCTION BOX: \nSupply and install with the dimensions of 8 x 8 cm water proof plastic junction box (Universal type) with not less than  IP 67/68 type and standard color coated ( for electrical connection inside it)  include waterproof enclosure (with watertight gasket) to complete work as required. ","NO.",10,null,0]
[null,"SUB TOTAL FOR ELECTRICAL WORKS",null,null,null,{"$f":"SUM(F97:F115)","v":0}]
[null,"TOTAL ",null,null,null,{"$f":"F116+F94+F75","v":0}]
[]
[]
[]
[]
[null,"Name of Bidder:         ______________________________"]
[]
[null,"Authorized signature: ______________________________"]
[]
[null,"Functional Title:         ______________________________"]
[]
[null,"Company:                   ______________________________"]
[]
[null,"Date:                          ______________________________                          "]